{"text_format":"1","workbook":"xlsx","n_sheets":2,"sheets":["Foglio1","Charting"],"not_rendered":{"charts":2,"images":0,"macros":1,"external_links":0,"defined_names":0,"comments":0,"pivot_tables":0},"unopened":[],"bounds":{"document_bytes":16777216,"sheet_cells":100000,"rows_first":2000,"rows_last":500,"rows_between":2000,"halvings":0,"cell_chars":16384,"cell_head_chars":4096},"cells_cut":0,"cells_raw":0,"read":"whole","date_system":"1900"}

{"sheet":"Foglio1","index":0,"n_rows":143,"n_cols":26,"rows_kept":143,"cut":false,"hidden":false,"merged":[]}
["user_Country","user_Affiliation","user_Age","user_id","date","question","subquestion","labels",0,1,2,3,4,5,"Explanation",null,"user_id","date","question","subquestion","labels","Explanation for reasons",null,"Level of confidence in public funding priorities ","Level of confidence in reasoning for public funding ","Explanation"]
["Germany","Fraunhofer",29,"5852c089aef2c94c3a000367","2017/3/31 12:17:9",7,1,"Public funding priorities ","Enabling technologies- which would increase the available options for a full-scale quantum computer.","Solutions such as quantum simulation and adiabatic computing- which have a good chance of being useful in the medium term.","Basic research- e.g. because it is premature to move ahead with technology development and the attempts being made to do so are misguided.","Two or three credible candidate platforms- with an aim to produce full-scale computers.","One chosen leading candidate platform- since only by focusing all available resources is there a reasonable chance of success.","Other (please indicate in the textbox after \\Submit\\\").\"",null,null,"5852c089aef2c94c3a000367","2017/3/31 12:17:56",7,2,"Reasoning for public funding ",null,null,60]
["United Kingdom","University of Sussex",45,"5852c089aef2c94c3a00036b","2017/5/4 10:42:2",7,1,"Public funding priorities ","Two or three credible candidate platforms- with an aim to produce full-scale computers.","Enabling technologies- which would increase the available options for a full-scale quantum computer.","Solutions such as quantum simulation and adiabatic computing- which have a good chance of being useful in the medium term.","Basic research- e.g. because it is premature to move ahead with technology development and the attempts being made to do so are misguided.","One chosen leading candidate platform- since only by focusing all available resources is there a reasonable chance of success.","Other (please indicate in the textbox after \\Submit\\\").\"",null,null,"5852c089aef2c94c3a00036b","2017/5/4 10:42:40",7,2,"Reasoning for public funding ","Two platforms are reasonable at this point as both have a reasonable chance of success.",null,100,100]
["Netherlands","Atos",29,"5852c089aef2c94c3a00036d","2017/5/5 12:23:28",7,1,"Public funding priorities ","Enabling technologies- which would increase the available options for a full-scale quantum computer.","Solutions such as quantum simulation and adiabatic computing- which have a good chance of being useful in the medium term.","Two or three credible candidate platforms- with an aim to produce full-scale computers.","Basic research- e.g. because it is premature to move ahead with technology development and the attempts being made to do so are misguided.","One chosen leading candidate platform- since only by focusing all available resources is there a reasonable chance of success.","Other (please indicate in the textbox after \\Submit\\\").\"","EU should focus on quantum software and be quantum-internet minded along the entire way.",null,"5852c089aef2c94c3a00036d","2017/5/5 12:24:1",7,2,"Reasoning for public funding ","EU must hold itself on a global market. Let's face it- we are lagging behind tremendously on China and the American Corporations. The FET is booting up sluggishly- and other continents are taking over many of our resources. \\r\\n\\r\\nWe cannot hope to be leaders in quantum computing hardware. We must look a step further and deal with the step after that. We should focus on what we are still leading in- (Quantum Software- Quantum Sensing and Quantum Internet)- large scale quantum computers will be a side-effect of these investments. ",null,50,100]
["Switzerland","IBM Zurich Research Laboratory",55,"5852c089aef2c94c3a00036f","2017/4/21 17:31:22",7,1,"Public funding priorities ","Basic research- e.g. because it is premature to move ahead with technology development and the attempts being made to do so are misguided.","Enabling technologies- which would increase the available options for a full-scale quantum computer.","Two or three credible candidate platforms- with an aim to produce full-scale computers.","Solutions such as quantum simulation and adiabatic computing- which have a good chance of being useful in the medium term.","Other (please indicate in the textbox after \\Submit\\\").\"","One chosen leading candidate platform- since only by focusing all available resources is there a reasonable chance of success.",null,null,"5852c089aef2c94c3a00036f","2017/4/21 17:31:57",7,2,"Reasoning for public funding ","Quantum technologies still need mainly research. Enabling technologies and demonstrations are important to verify or European progress.",null,80,90]
["Italy","CNR - SPIN",47,"5852c089aef2c94c3a000373","2017/4/24 10:34:17",7,1,"Public funding priorities ","Basic research- e.g. because it is premature to move ahead with technology development and the attempts being made to do so are misguided.","Enabling technologies- which would increase the available options for a full-scale quantum computer.","Two or three credible candidate platforms- with an aim to produce full-scale computers.","Solutions such as quantum simulation and adiabatic computing- which have a good chance of being useful in the medium term.","One chosen leading candidate platform- since only by focusing all available resources is there a reasonable chance of success.","Other (please indicate in the textbox after \\Submit\\\").\"",null,null,"5852c089aef2c94c3a000373","2017/4/24 10:34:50",7,2,"Reasoning for public funding ",null,null,80]
["United Kingdom","Hitachi",null,"5852c089aef2c94c3a00037f","2017/4/21 9:4:36",7,1,"Public funding priorities ","Basic research- e.g. because it is premature to move ahead with technology development and the attempts being made to do so are misguided.","Enabling technologies- which would increase the available options for a full-scale quantum computer.","Two or three credible candidate platforms- with an aim to produce full-scale computers.","One chosen leading candidate platform- since only by focusing all available resources is there a reasonable chance of success.","Solutions such as quantum simulation and adiabatic computing- which have a good chance of being useful in the medium term.","Other (please indicate in the textbox after \\Submit\\\").\"",null,null,"5852c089aef2c94c3a00037f","2017/4/21 9:5:8",7,2,"Reasoning for public funding ","Quantum computing is still at an early stage and funding still needs to be given to basic research as well as studies on scalability.",null,70,70]
["United Kingdom","University of Oxford",null,"5852c089aef2c94c3a000385","2017/5/12 16:9:10",7,1,"Public funding priorities ","Two or three credible candidate platforms- with an aim to produce full-scale computers.","Solutions such as quantum simulation and adiabatic computing- which have a good chance of being useful in the medium term.","Enabling technologies- which would increase the available options for a full-scale quantum computer.","One chosen leading candidate platform- since only by focusing all available resources is there a reasonable chance of success.","Basic research- e.g. because it is premature to move ahead with technology development and the attempts being made to do so are misguided.","Other (please indicate in the textbox after \\Submit\\\").\"","\\Two or three\\\" seems to be opposed to \\\"one\\\" - but I think the EC will need to take an expert overview- because soonish it might become apparent which of the QC approaches is likely to be the \\\"winner\\\". Unless this is clear- I think you should not put all of your eggs in one basket.\"",null,"5852c089aef2c94c3a000385","2017/5/12 16:12:28",7,2,"Reasoning for public funding ","Basic research is always important- but for achieving QC- a balance will be needed - there is still quite a lot of \\basic\\\" Physics and engineering required to make this work. So this is not \\\"basic\\\" in the sense of \\\"curiosity-driven\\\" (good though that is) but also driven by the need to make something work.\"",null,30,30,"If we could be completely confident- it wouldn't be research."]
["Finland","Aalto University",36,"5852c089aef2c94c3a00038b","2017/4/19 8:52:59",7,1,"Public funding priorities ","One chosen leading candidate platform- since only by focusing all available resources is there a reasonable chance of success.","Enabling technologies- which would increase the available options for a full-scale quantum computer.","Two or three credible candidate platforms- with an aim to produce full-scale computers.","Basic research- e.g. because it is premature to move ahead with technology development and the attempts being made to do so are misguided.","Solutions such as quantum simulation and adiabatic computing- which have a good chance of being useful in the medium term.","Other (please indicate in the textbox after \\Submit\\\").\"",null,null,"5852c089aef2c94c3a00038b","2017/4/19 8:53:27",7,2,"Reasoning for public funding ","Building a large scale quantum computer is the greatest challenge with the greatest benefits. Hence we should aim for it seriously in Europe. The funding reserved for quantum computing is not so large that it would allow for a serious development of several distinct platforms. Thus we should primarily invest in the most promising one. Obviously- a lot of enabling technologies \\r\\n and basic science need to be developed as well but the actual quantum computer should have the greatest weight.",null,100,100]
["Germany","Karlsruhe Institute of Technology",38,"5852c089aef2c94c3a000391","2017/3/29 20:15:37",7,1,"Public funding priorities ","Basic research- e.g. because it is premature to move ahead with technology development and the attempts being made to do so are misguided.","Enabling technologies- which would increase the available options for a full-scale quantum computer.","Solutions such as quantum simulation and adiabatic computing- which have a good chance of being useful in the medium term.","Two or three credible candidate platforms- with an aim to produce full-scale computers.","One chosen leading candidate platform- since only by focusing all available resources is there a reasonable chance of success.","Other (please indicate in the textbox after \\Submit\\\").\"",null,null,"5852c089aef2c94c3a000391","2017/3/29 20:15:54",7,2,"Reasoning for public funding "]
["United Kingdom","Lancaster University",37,"58dbcc590e349c2a60000076","2017/3/29 15:46:48",7,1,"Public funding priorities ","Enabling technologies- which would increase the available options for a full-scale quantum computer.","Basic research- e.g. because it is premature to move ahead with technology development and the attempts being made to do so are misguided.","Solutions such as quantum simulation and adiabatic computing- which have a good chance of being useful in the medium term.","Two or three credible candidate platforms- with an aim to produce full-scale computers.","One chosen leading candidate platform- since only by focusing all available resources is there a reasonable chance of success.","Other (please indicate in the textbox after \\Submit\\\").\"",null,null,"58dbcc590e349c2a60000076","2017/3/29 15:47:30",7,2,"Reasoning for public funding ","Enabling technolgies are the key to long-term success- they should certainly be prioritised.",null,80,50]
["Germany","Saarland University",49,"58dbcd4e0e349c2a60000090","2017/4/18 18:49:34",7,1,"Public funding priorities ","Basic research- e.g. because it is premature to move ahead with technology development and the attempts being made to do so are misguided.","Enabling technologies- which would increase the available options for a full-scale quantum computer.","Solutions such as quantum simulation and adiabatic computing- which have a good chance of being useful in the medium term.","Two or three credible candidate platforms- with an aim to produce full-scale computers.","One chosen leading candidate platform- since only by focusing all available resources is there a reasonable chance of success.","Other (please indicate in the textbox after \\Submit\\\").\"",null,null,"58dbcd4e0e349c2a60000090","2017/4/18 18:49:59",7,2,"Reasoning for public funding ","highest priority should be given the basic research with decreasing priority to more specialized approaches - there are only few candidate platforms so far and I think more basic research is required to find the optimum system",null,90,80]
["United States","Nokia Bell-Labs",50,"58dbce3a0e349c2a600000a3","2017/4/19 15:41:17",7,1,"Public funding priorities ","Enabling technologies- which would increase the available options for a full-scale quantum computer.","Solutions such as quantum simulation and adiabatic computing- which have a good chance of being useful in the medium term.","Two or three credible candidate platforms- with an aim to produce full-scale computers.","Basic research- e.g. because it is premature to move ahead with technology development and the attempts being made to do so are misguided.","One chosen leading candidate platform- since only by focusing all available resources is there a reasonable chance of success.","Other (please indicate in the textbox after \\Submit\\\").\"",null,null,"58dbce3a0e349c2a600000a3","2017/4/19 15:41:33",7,2,"Reasoning for public funding ","We do not know which technology will be the best for full-scale quantum computer. So- researchers shall continue working on all promising technologies. \\r\\n\\r\\nFull-scale quantum computer should be much more powerful than adiabatic computing. So- full-scale quantum computer has higher priority. At the same time adiabatic computing is already reality and we can hope to get useful adiabatic computer faster than full-scale quantum computer. ",null,70,70]
["Singapore","Center for Quantum Technologies",56,"58dbce4e0e349c2a600000a9","2017/4/19 1:5:2",7,1,"Public funding priorities ","Basic research- e.g. because it is premature to move ahead with technology development and the attempts being made to do so are misguided.","Enabling technologies- which would increase the available options for a full-scale quantum computer.","Solutions such as quantum simulation and adiabatic computing- which have a good chance of being useful in the medium term.","Two or three credible candidate platforms- with an aim to produce full-scale computers.","One chosen leading candidate platform- since only by focusing all available resources is there a reasonable chance of success.","Other (please indicate in the textbox after \\Submit\\\").\"","Atomtronics devices; quantum metrology;",null,"58dbce4e0e349c2a600000a9","2017/4/19 1:5:25",7,2,"Reasoning for public funding ","With a time frame typically between 15-20 years- it is hard to ignore the purpose and contribution  of quantum research for basic science. Actual realization of a quantum computer will need a societal demand and push (e.g. warfare or railway problems in the case of conventional computers).",null,75,70,"It is often hard to predict the success of program."]
["Netherlands","QuSoft/CWI/Univ of Amsterdam",50,"58dbce730e349c2a600000b5","2017/3/29 15:15:58",7,1,"Public funding priorities ","Basic research- e.g. because it is premature to move ahead with technology development and the attempts being made to do so are misguided.","Enabling technologies- which would increase the available options for a full-scale quantum computer.","Solutions such as quantum simulation and adiabatic computing- which have a good chance of being useful in the medium term.","Two or three credible candidate platforms- with an aim to produce full-scale computers.","One chosen leading candidate platform- since only by focusing all available resources is there a reasonable chance of success.","Other (please indicate in the textbox after \\Submit\\\").\"",null,null,"58dbce730e349c2a600000b5","2017/3/29 15:16:29",7,2,"Reasoning for public funding "]
["United States",null,null,"58dbd02b0e349c2a60000182","2017/3/29 15:45:24",7,1,"Public funding priorities ","Enabling technologies- which would increase the available options for a full-scale quantum computer.","Two or three credible candidate platforms- with an aim to produce full-scale computers.","Basic research- e.g. because it is premature to move ahead with technology development and the attempts being made to do so are misguided.","Solutions such as quantum simulation and adiabatic computing- which have a good chance of being useful in the medium term.","One chosen leading candidate platform- since only by focusing all available resources is there a reasonable chance of success.","Other (please indicate in the textbox after \\Submit\\\").\"",null,null,"58dbd02b0e349c2a60000182","2017/3/29 15:46:6",7,2,"Reasoning for public funding ",null,null,70]
["Poland","ICFO",61,"58dbd03e0e349c2a60000193","2017/4/20 11:9:32",7,1,"Public funding priorities ","Solutions such as quantum simulation and adiabatic computing- which have a good chance of being useful in the medium term.","Basic research- e.g. because it is premature to move ahead with technology development and the attempts being made to do so are misguided.","Enabling technologies- which would increase the available options for a full-scale quantum computer.","Two or three credible candidate platforms- with an aim to produce full-scale computers.","One chosen leading candidate platform- since only by focusing all available resources is there a reasonable chance of success.","Other (please indicate in the textbox after \\Submit\\\").\"",null,null,"58dbd03e0e349c2a60000193","2017/4/20 11:9:53",7,2,"Reasoning for public funding ","first is thge most close today for application- second is very important but ususaly forgotten by the political decider- who are not always the most clever ones.",null,100,100]
["Netherlands","University of Groningen",46,"58dbd0cc0e349c2a600001b7","2017/3/30 8:25:58",7,1,"Public funding priorities ","Basic research- e.g. because it is premature to move ahead with technology development and the attempts being made to do so are misguided.","Enabling technologies- which would increase the available options for a full-scale quantum computer.","Solutions such as quantum simulation and adiabatic computing- which have a good chance of being useful in the medium term.","Two or three credible candidate platforms- with an aim to produce full-scale computers.","One chosen leading candidate platform- since only by focusing all available resources is there a reasonable chance of success.","Other (please indicate in the textbox after \\Submit\\\").\"",null,null,"58dbd0cc0e349c2a600001b7","2017/3/30 8:26:33",7,2,"Reasoning for public funding ","Both basic research and enabling technologies should work together towards developing one or two credible platforms.",null,100,100]
["United States","University of Southern California",40,"58dbd2120e349c2a60000222","2017/3/29 17:17:31",7,1,"Public funding priorities ","Basic research- e.g. because it is premature to move ahead with technology development and the attempts being made to do so are misguided.","Enabling technologies- which would increase the available options for a full-scale quantum computer.","Solutions such as quantum simulation and adiabatic computing- which have a good chance of being useful in the medium term.","Two or three credible candidate platforms- with an aim to produce full-scale computers.","One chosen leading candidate platform- since only by focusing all available resources is there a reasonable chance of success.","Other (please indicate in the textbox after \\Submit\\\").\"",null,null,"58dbd2120e349c2a60000222","2017/3/29 17:18:9",7,2,"Reasoning for public funding ","I think the status of the field at this point is at the level where basic research will prove to be most beneficial. The reason being it the many uncertainties: We do not know what quantum computing is good for- which platform would serve best potential applications. ",null,90,90]
["Italy","Universita Roma Tre",38,"58dbd49f0e349c2a60000327","2017/5/5 13:51:33",7,1,"Public funding priorities ","Solutions such as quantum simulation and adiabatic computing- which have a good chance of being useful in the medium term.","Basic research- e.g. because it is premature to move ahead with technology development and the attempts being made to do so are misguided.","Two or three credible candidate platforms- with an aim to produce full-scale computers.","One chosen leading candidate platform- since only by focusing all available resources is there a reasonable chance of success.","Enabling technologies- which would increase the available options for a full-scale quantum computer.","Other (please indicate in the textbox after \\Submit\\\").\"",null,null,"58dbd49f0e349c2a60000327","2017/5/5 13:51:52",7,2,"Reasoning for public funding ","These seem to be the safest horses to bet on",null,33,60]
["Malta","Physics",38,"58dbe0770e349c2a6000060b","2017/4/28 15:30:2",7,1,"Public funding priorities ","Solutions such as quantum simulation and adiabatic computing- which have a good chance of being useful in the medium term.","Basic research- e.g. because it is premature to move ahead with technology development and the attempts being made to do so are misguided.","Enabling technologies- which would increase the available options for a full-scale quantum computer.","Two or three credible candidate platforms- with an aim to produce full-scale computers.","One chosen leading candidate platform- since only by focusing all available resources is there a reasonable chance of success.","Other (please indicate in the textbox after \\Submit\\\").\"",null,null,"58dbe0770e349c2a6000060b","2017/4/28 15:30:33",7,2,"Reasoning for public funding ",null,null,100,100]
[null,"ibm",null,"58dbe2a90e349c2a60000637","2017/3/29 16:40:12",7,1,"Public funding priorities ","Basic research- e.g. because it is premature to move ahead with technology development and the attempts being made to do so are misguided.","Enabling technologies- which would increase the available options for a full-scale quantum computer.","Solutions such as quantum simulation and adiabatic computing- which have a good chance of being useful in the medium term.","Two or three credible candidate platforms- with an aim to produce full-scale computers.","One chosen leading candidate platform- since only by focusing all available resources is there a reasonable chance of success.","Other (please indicate in the textbox after \\Submit\\\").\"",null,null,"58dbe2a90e349c2a60000637","2017/3/29 16:40:30",7,2,"Reasoning for public funding "]
["United States","Boston University- Dept. of ECE",58,"58dbe4610e349c2a600006e6","2017/3/31 14:47:51",7,1,"Public funding priorities ","Solutions such as quantum simulation and adiabatic computing- which have a good chance of being useful in the medium term.","Two or three credible candidate platforms- with an aim to produce full-scale computers.","Basic research- e.g. because it is premature to move ahead with technology development and the attempts being made to do so are misguided.","Enabling technologies- which would increase the available options for a full-scale quantum computer.","One chosen leading candidate platform- since only by focusing all available resources is there a reasonable chance of success.","Other (please indicate in the textbox after \\Submit\\\").\"",null,null,"58dbe4610e349c2a600006e6","2017/3/31 14:48:15",7,2,"Reasoning for public funding ","Adiabatic computers and quantum walk simulators  of complex Hsmiltonians are almost ready for utilization. This will show some plausible outcome to the audience that is fatigued with never ending promise of general quantum superiority. Cold atoms and superconducting circuits are clearly two most promising technological solutions that require development. The basic research is needed to discover new useful applications- additional future computational platforms- and novel algorithms that outperform classical computation. The more spin-off technological applications will be produced the longer quantum computing will have a broad support of community. ",null,90,90]
["United States",null,45,"58dbec9f0e349c2a600007ec","2017/5/7 5:12:45",7,1,"Public funding priorities ","Enabling technologies- which would increase the available options for a full-scale quantum computer.","Basic research- e.g. because it is premature to move ahead with technology development and the attempts being made to do so are misguided.","Two or three credible candidate platforms- with an aim to produce full-scale computers.","One chosen leading candidate platform- since only by focusing all available resources is there a reasonable chance of success.","Solutions such as quantum simulation and adiabatic computing- which have a good chance of being useful in the medium term.","Other (please indicate in the textbox after \\Submit\\\").\"",null,null,"58dbec9f0e349c2a600007ec","2017/5/7 5:13:5",7,2,"Reasoning for public funding ","I believe the full-scale integrated hardware will be mostly implemented by the private sector and there are several fundamental problems to solve in enabling technologies such as materials science.",null,50,50]
["Russian Federation","Kazan Federal University- professor",63,"58dbfaea0e349c2a60000871","2017/4/23 19:28:32",7,1,"Public funding priorities ","Two or three credible candidate platforms- with an aim to produce full-scale computers.","Basic research- e.g. because it is premature to move ahead with technology development and the attempts being made to do so are misguided.","Enabling technologies- which would increase the available options for a full-scale quantum computer.","Solutions such as quantum simulation and adiabatic computing- which have a good chance of being useful in the medium term.","One chosen leading candidate platform- since only by focusing all available resources is there a reasonable chance of success.","Other (please indicate in the textbox after \\Submit\\\").\"",null,null,"58dbfaea0e349c2a60000871","2017/4/23 19:29:7",7,2,"Reasoning for public funding ",null,null,75,75]
["United States","Microsoft",59,"58dc04140e349c2a6000090f","2017/3/30 3:14:8",7,1,"Public funding priorities ","Basic research- e.g. because it is premature to move ahead with technology development and the attempts being made to do so are misguided.","Enabling technologies- which would increase the available options for a full-scale quantum computer.","Two or three credible candidate platforms- with an aim to produce full-scale computers.","Solutions such as quantum simulation and adiabatic computing- which have a good chance of being useful in the medium term.","One chosen leading candidate platform- since only by focusing all available resources is there a reasonable chance of success.","Other (please indicate in the textbox after \\Submit\\\").\"",null,null,"58dc04140e349c2a6000090f","2017/3/30 3:14:42",7,2,"Reasoning for public funding ","We're near the tipping point now. Getting the enabling technologies in place with a focus to real solutions will become more and more of a priority.",null,70,70]
["France","CNRS - PCQC",39,"58dc0c680e349c2a60000954","2017/3/29 19:58:48",7,1,"Public funding priorities ","Basic research- e.g. because it is premature to move ahead with technology development and the attempts being made to do so are misguided.","Enabling technologies- which would increase the available options for a full-scale quantum computer.","Two or three credible candidate platforms- with an aim to produce full-scale computers.","Solutions such as quantum simulation and adiabatic computing- which have a good chance of being useful in the medium term.","One chosen leading candidate platform- since only by focusing all available resources is there a reasonable chance of success.","Other (please indicate in the textbox after \\Submit\\\").\"",null,null,"58dc0c680e349c2a60000954","2017/3/29 19:59:5",7,2,"Reasoning for public funding ",null,null,90,90]
["Canada","D-Wave Systems Inc.",50,"58dc152d0e349c2a60000a48","2017/3/31 21:6:21",7,1,"Public funding priorities ","Enabling technologies- which would increase the available options for a full-scale quantum computer.","Solutions such as quantum simulation and adiabatic computing- which have a good chance of being useful in the medium term.","Two or three credible candidate platforms- with an aim to produce full-scale computers.","Basic research- e.g. because it is premature to move ahead with technology development and the attempts being made to do so are misguided.","One chosen leading candidate platform- since only by focusing all available resources is there a reasonable chance of success.","Other (please indicate in the textbox after \\Submit\\\").\"",null,null,"58dc152d0e349c2a60000a48","2017/3/31 21:10:55",7,2,"Reasoning for public funding ","Enabling technologies is the fastest way to realize quantum computer. Basic research is very important- but it will not directly lead to the development of a real quantum computer. ",null,80,90]
["United States","Microsoft Research",36,"58dc19a20e349c2a60000ae0","2017/3/29 21:38:54",7,1,"Public funding priorities ","Basic research- e.g. because it is premature to move ahead with technology development and the attempts being made to do so are misguided.","Enabling technologies- which would increase the available options for a full-scale quantum computer.","Solutions such as quantum simulation and adiabatic computing- which have a good chance of being useful in the medium term.","Two or three credible candidate platforms- with an aim to produce full-scale computers.","One chosen leading candidate platform- since only by focusing all available resources is there a reasonable chance of success.","Other (please indicate in the textbox after \\Submit\\\").\"",null,null,"58dc19a20e349c2a60000ae0","2017/3/29 21:39:20",7,2,"Reasoning for public funding ","Basic research is the most important thing for public sector funding of quantum computing.  There are a number of basic questions about applications and platforms that still need to be addressed.  We also vitally need to build the enabling technologies for verifying and validating quantum computers.",null,70,100]
["Italy","Universita degli Studi di Milano- Dept. Comp. Sci.",51,"58dc29b80e349c2a60000d4c","2017/3/29 21:47:48",7,1,"Public funding priorities ","Basic research- e.g. because it is premature to move ahead with technology development and the attempts being made to do so are misguided.","Enabling technologies- which would increase the available options for a full-scale quantum computer.","Solutions such as quantum simulation and adiabatic computing- which have a good chance of being useful in the medium term.","Two or three credible candidate platforms- with an aim to produce full-scale computers.","One chosen leading candidate platform- since only by focusing all available resources is there a reasonable chance of success.","Other (please indicate in the textbox after \\Submit\\\").\"",null,null,"58dc29b80e349c2a60000d4c","2017/3/29 21:48:28",7,2,"Reasoning for public funding "]
["United States","Sandia National Labs",40,"58dc2de20e349c2a60000dda","2017/3/29 22:18:34",7,1,"Public funding priorities ","Two or three credible candidate platforms- with an aim to produce full-scale computers.","Basic research- e.g. because it is premature to move ahead with technology development and the attempts being made to do so are misguided.","Solutions such as quantum simulation and adiabatic computing- which have a good chance of being useful in the medium term.","Enabling technologies- which would increase the available options for a full-scale quantum computer.","One chosen leading candidate platform- since only by focusing all available resources is there a reasonable chance of success.","Other (please indicate in the textbox after \\Submit\\\").\"",null,null,"58dc2de20e349c2a60000dda","2017/3/29 22:19:13",7,2,"Reasoning for public funding ",null,null,10,0]
["Australia","University of Sydney",33,"58dc31340e349c2a60000e24","2017/3/29 23:20:3",7,1,"Public funding priorities ","Basic research- e.g. because it is premature to move ahead with technology development and the attempts being made to do so are misguided.","Solutions such as quantum simulation and adiabatic computing- which have a good chance of being useful in the medium term.","Two or three credible candidate platforms- with an aim to produce full-scale computers.","Enabling technologies- which would increase the available options for a full-scale quantum computer.","One chosen leading candidate platform- since only by focusing all available resources is there a reasonable chance of success.","Other (please indicate in the textbox after \\Submit\\\").\"",null,null,"58dc31340e349c2a60000e24","2017/3/29 23:20:40",7,2,"Reasoning for public funding ",null,null,75]
["Spain","Universitat Autonoma de Barcelona",47,"58dc3c050e349c2a60000f57","2017/4/14 18:0:58",7,1,"Public funding priorities ","Basic research- e.g. because it is premature to move ahead with technology development and the attempts being made to do so are misguided.","Solutions such as quantum simulation and adiabatic computing- which have a good chance of being useful in the medium term.","Enabling technologies- which would increase the available options for a full-scale quantum computer.","Two or three credible candidate platforms- with an aim to produce full-scale computers.","One chosen leading candidate platform- since only by focusing all available resources is there a reasonable chance of success.","Other (please indicate in the textbox after \\Submit\\\").\"",null,null,"58dc3c050e349c2a60000f57","2017/4/14 18:1:11",7,2,"Reasoning for public funding ","I think it is a bad strategy to focus on one- two or three candidates only. For example- I think basic reaserach is mandatory in fields like decoherence and quantum-to-classical transition.   ",null,80,90]
["Colombia","ADAPTUN SAS",31,"58dc3f980e349c2a60000f93","2017/3/30 0:8:36",7,1,"Public funding priorities ","Solutions such as quantum simulation and adiabatic computing- which have a good chance of being useful in the medium term.","Enabling technologies- which would increase the available options for a full-scale quantum computer.","Two or three credible candidate platforms- with an aim to produce full-scale computers.","Basic research- e.g. because it is premature to move ahead with technology development and the attempts being made to do so are misguided.","One chosen leading candidate platform- since only by focusing all available resources is there a reasonable chance of success.","Other (please indicate in the textbox after \\Submit\\\").\"",null,null,null,null,null,null,null,null,null,75]
["Singapore","Centre for Quantum Technologies- National Universtiy of Singapore","40+","58dc8f390e349c2a6000135a","2017/5/12 3:34:25",7,1,"Public funding priorities ","Basic research- e.g. because it is premature to move ahead with technology development and the attempts being made to do so are misguided.","Enabling technologies- which would increase the available options for a full-scale quantum computer.","Solutions such as quantum simulation and adiabatic computing- which have a good chance of being useful in the medium term.","Two or three credible candidate platforms- with an aim to produce full-scale computers.","One chosen leading candidate platform- since only by focusing all available resources is there a reasonable chance of success.","Other (please indicate in the textbox after \\Submit\\\").\"",null,null,"58dc8f390e349c2a6000135a","2017/5/12 3:34:52",7,2,"Reasoning for public funding "]
["United Kingdom","University of Cambridge",38,"58dd39ba893db95b5c000583","2017/4/1 16:13:26",7,1,"Public funding priorities ","Basic research- e.g. because it is premature to move ahead with technology development and the attempts being made to do so are misguided.","Enabling technologies- which would increase the available options for a full-scale quantum computer.","Two or three credible candidate platforms- with an aim to produce full-scale computers.","Solutions such as quantum simulation and adiabatic computing- which have a good chance of being useful in the medium term.","One chosen leading candidate platform- since only by focusing all available resources is there a reasonable chance of success.","Other (please indicate in the textbox after \\Submit\\\").\"",null,null,"58dd39ba893db95b5c000583","2017/4/1 16:13:38",7,2,"Reasoning for public funding ","It would be wrong to choose one candidate and shower money on it- as there is not a clear frontrunner at the moment. All approaches so far show pros and cons to different extents. By funding basic research as well as enabling technologies- we keep our eyes open to new possible implementations while pushing forward the state of the art of the available implementations. ",null,80,80]
["United Kingdom","University College London",74,"58de3f1a893db95b5c000cac","2017/3/31 12:35:17",7,1,"Public funding priorities ","Basic research- e.g. because it is premature to move ahead with technology development and the attempts being made to do so are misguided.","Two or three credible candidate platforms- with an aim to produce full-scale computers.","Enabling technologies- which would increase the available options for a full-scale quantum computer.","Solutions such as quantum simulation and adiabatic computing- which have a good chance of being useful in the medium term.","One chosen leading candidate platform- since only by focusing all available resources is there a reasonable chance of success.","Other (please indicate in the textbox after \\Submit\\\").\"",null,null,"58de3f1a893db95b5c000cac","2017/3/31 12:36:3",7,2,"Reasoning for public funding ","Too early to say which technology will provide the quantum computer.It could be that it has not yet even been considered.",null,90,90]
["Austria","University of Innsbruck",36,"58ded299f2d9f720620004bb","2017/3/31 22:46:56",7,1,"Public funding priorities ","Two or three credible candidate platforms- with an aim to produce full-scale computers.","Enabling technologies- which would increase the available options for a full-scale quantum computer.","Basic research- e.g. because it is premature to move ahead with technology development and the attempts being made to do so are misguided.","Solutions such as quantum simulation and adiabatic computing- which have a good chance of being useful in the medium term.","One chosen leading candidate platform- since only by focusing all available resources is there a reasonable chance of success.","Other (please indicate in the textbox after \\Submit\\\").\"",null,null,"58ded299f2d9f720620004bb","2017/3/31 22:47:35",7,2,"Reasoning for public funding ","Currently leading edge technologies will enable the respective markets. A second generation of quantum computers will be more evolved and provide the necessary information to decide on the most promising architecture. Said architecture might be not even realized yet (see for instance the majorana approach). All of that is based- and requires- fundamental research as a seed for new ideas.\\r\\nAdiabatic quantum computing is likely not going to be beneficial on the long run - neither for larger systems- nor for higher speeds- while it is to early to decide on a single platform yet.",null,90,90]
["United Kingdom","Loughborough University",53,"58def721f2d9f72062000604","2017/4/24 11:15:12",7,1,"Public funding priorities ","Solutions such as quantum simulation and adiabatic computing- which have a good chance of being useful in the medium term.","Two or three credible candidate platforms- with an aim to produce full-scale computers.","Enabling technologies- which would increase the available options for a full-scale quantum computer.","Basic research- e.g. because it is premature to move ahead with technology development and the attempts being made to do so are misguided.","One chosen leading candidate platform- since only by focusing all available resources is there a reasonable chance of success.","Other (please indicate in the textbox after \\Submit\\\").\"",null,null,"58def721f2d9f72062000604","2017/4/24 11:15:50",7,2,"Reasoning for public funding ","It is futile to conentrate on overpolishing small-scale quantum devices or developing advanced quantum software for non-existent hardware. We should go full speed with developing \\reachable\\\" quantum technologies- such as adiabatic quantum optimization- quantum sensing and simulation. Tis will bring about technology advances and theoretical methods- which will eventually enable the realization of universal quantum computing.\"",null,90,90]
["Canada","Anyon Systems Inc.",33,"58e1129318298df04d00003b","2017/5/5 15:52:3",7,1,"Public funding priorities ","Two or three credible candidate platforms- with an aim to produce full-scale computers.","Enabling technologies- which would increase the available options for a full-scale quantum computer.","Solutions such as quantum simulation and adiabatic computing- which have a good chance of being useful in the medium term.","Basic research- e.g. because it is premature to move ahead with technology development and the attempts being made to do so are misguided.","One chosen leading candidate platform- since only by focusing all available resources is there a reasonable chance of success.","Other (please indicate in the textbox after \\Submit\\\").\"",null,null,"58e1129318298df04d00003b","2017/5/5 15:52:16",7,2,"Reasoning for public funding ",null,null,100,100]
["Spain",null,42,"58e205ac6c7ae40b360001b9","2017/4/4 9:8:50",7,1,"Public funding priorities ","Other (please indicate in the textbox after \\Submit\\\").\"","Two or three credible candidate platforms- with an aim to produce full-scale computers.","Solutions such as quantum simulation and adiabatic computing- which have a good chance of being useful in the medium term.","One chosen leading candidate platform- since only by focusing all available resources is there a reasonable chance of success.","Enabling technologies- which would increase the available options for a full-scale quantum computer.","Basic research- e.g. because it is premature to move ahead with technology development and the attempts being made to do so are misguided.","European quantum computing simulators to be available enhance european industry in this field",null,"58e205ac6c7ae40b360001b9","2017/4/4 9:9:33",7,2,"Reasoning for public funding ","It would be convenient to work on european initiatives of quantum basic infraestructure. European companies have to have quantum infraestructure to grow independently of non-european initiatives",null,70,70]
["United Kingdom","Innovate UK",34,"58e368997ceceb751a0007ec","2017/4/10 15:29:17",7,1,"Public funding priorities ","Other (please indicate in the textbox after \\Submit\\\").\"","Enabling technologies- which would increase the available options for a full-scale quantum computer.","Solutions such as quantum simulation and adiabatic computing- which have a good chance of being useful in the medium term.","Basic research- e.g. because it is premature to move ahead with technology development and the attempts being made to do so are misguided.","One chosen leading candidate platform- since only by focusing all available resources is there a reasonable chance of success.","Two or three credible candidate platforms- with an aim to produce full-scale computers.","Algorithms! Already- there are countless USA companies emerging who are developing quantum algorithms. Where are the European companies?\\nFundamental research underpins most of the developments in many of the boxes above- rather than treated as an subject in it's own right.",null,"58e368997ceceb751a0007ec","2017/4/10 15:29:48",7,2,"Reasoning for public funding ",null,null,80,80]
["Sweden","Chalmers University of Technology",39,"58e36a6b7ceceb751a000804","2017/5/12 15:13:50",7,1,"Public funding priorities ","Basic research- e.g. because it is premature to move ahead with technology development and the attempts being made to do so are misguided.","Enabling technologies- which would increase the available options for a full-scale quantum computer.","Solutions such as quantum simulation and adiabatic computing- which have a good chance of being useful in the medium term.","Two or three credible candidate platforms- with an aim to produce full-scale computers.","One chosen leading candidate platform- since only by focusing all available resources is there a reasonable chance of success.","Other (please indicate in the textbox after \\Submit\\\").\"",null,null,"58e36a6b7ceceb751a000804","2017/5/12 15:14:31",7,2,"Reasoning for public funding ","Many approaches are still needed",null,50,50]
["Germany","SAP",null,"58e4f37f7b67cab57f0004f2","2017/4/26 7:54:3",7,1,"Public funding priorities ","Enabling technologies- which would increase the available options for a full-scale quantum computer.","Basic research- e.g. because it is premature to move ahead with technology development and the attempts being made to do so are misguided.","Two or three credible candidate platforms- with an aim to produce full-scale computers.","Solutions such as quantum simulation and adiabatic computing- which have a good chance of being useful in the medium term.","One chosen leading candidate platform- since only by focusing all available resources is there a reasonable chance of success.","Other (please indicate in the textbox after \\Submit\\\").\"","too early to know which quantum computer technology(ies) will arise- so not a good idea to concentrate only on one platform. European strength is also on software- mathematic- etc. ",null,"58e4f37f7b67cab57f0004f2","2017/4/26 7:54:28",7,2,"Reasoning for public funding ",null,null,80,80]
["Germany","JGU Mainz",38,"58e5f495ca034e7c6b00026d","2017/4/24 8:45:24",7,1,"Public funding priorities ","Basic research- e.g. because it is premature to move ahead with technology development and the attempts being made to do so are misguided.","Enabling technologies- which would increase the available options for a full-scale quantum computer.","Solutions such as quantum simulation and adiabatic computing- which have a good chance of being useful in the medium term.","Two or three credible candidate platforms- with an aim to produce full-scale computers.","One chosen leading candidate platform- since only by focusing all available resources is there a reasonable chance of success.","Other (please indicate in the textbox after \\Submit\\\").\"",null,null,"58e5f495ca034e7c6b00026d","2017/4/24 8:45:56",7,2,"Reasoning for public funding "]
["United States","Intel Corporation",45,"58ece8f41f375cbb71000563","2017/4/11 14:48:44",7,1,"Public funding priorities ","Basic research- e.g. because it is premature to move ahead with technology development and the attempts being made to do so are misguided.","Enabling technologies- which would increase the available options for a full-scale quantum computer.","Solutions such as quantum simulation and adiabatic computing- which have a good chance of being useful in the medium term.","Two or three credible candidate platforms- with an aim to produce full-scale computers.","One chosen leading candidate platform- since only by focusing all available resources is there a reasonable chance of success.","Other (please indicate in the textbox after \\Submit\\\").\"",null,null,"58ece8f41f375cbb71000563","2017/4/11 14:48:57",7,2,"Reasoning for public funding ",null,null,90,90]
["United States","USC",49,"58f2bc26b46e82714e0000c2","2017/4/16 1:2:10",7,1,"Public funding priorities ","Basic research- e.g. because it is premature to move ahead with technology development and the attempts being made to do so are misguided.","Enabling technologies- which would increase the available options for a full-scale quantum computer.","Solutions such as quantum simulation and adiabatic computing- which have a good chance of being useful in the medium term.","Two or three credible candidate platforms- with an aim to produce full-scale computers.","One chosen leading candidate platform- since only by focusing all available resources is there a reasonable chance of success.","Other (please indicate in the textbox after \\Submit\\\").\"",null,null,"58f2bc26b46e82714e0000c2","2017/4/16 1:2:25",7,2,"Reasoning for public funding "]
["Netherlands","QuTech- TU Delft",44,"58f4e87313bb3df53300065c","2017/4/19 17:1:47",7,1,"Public funding priorities ","Enabling technologies- which would increase the available options for a full-scale quantum computer.","Solutions such as quantum simulation and adiabatic computing- which have a good chance of being useful in the medium term.","Two or three credible candidate platforms- with an aim to produce full-scale computers.","Basic research- e.g. because it is premature to move ahead with technology development and the attempts being made to do so are misguided.","One chosen leading candidate platform- since only by focusing all available resources is there a reasonable chance of success.","Other (please indicate in the textbox after \\Submit\\\").\"",null,null,"58f4e87313bb3df53300065c","2017/4/19 17:2:52",7,2,"Reasoning for public funding ","it is time to try and consolidate promising approaches. this will require substantial investment so choices will need to be made. already- it is clear that some platforms are not going to make it into a large-scale device. "]
["Australia","QxBranch",39,"58f597be16df98d816000218","2017/4/18 5:40:1",7,1,"Public funding priorities ","Basic research- e.g. because it is premature to move ahead with technology development and the attempts being made to do so are misguided.","Enabling technologies- which would increase the available options for a full-scale quantum computer.","Solutions such as quantum simulation and adiabatic computing- which have a good chance of being useful in the medium term.","Two or three credible candidate platforms- with an aim to produce full-scale computers.","One chosen leading candidate platform- since only by focusing all available resources is there a reasonable chance of success.","Other (please indicate in the textbox after \\Submit\\\").\"",null,null,"58f597be16df98d816000218","2017/4/18 5:40:20",7,2,"Reasoning for public funding "]
["United States","University Professor",null,"58f5a1be16df98d81600027f","2017/4/30 22:8:6",7,1,"Public funding priorities ","Enabling technologies- which would increase the available options for a full-scale quantum computer.","Solutions such as quantum simulation and adiabatic computing- which have a good chance of being useful in the medium term.","Basic research- e.g. because it is premature to move ahead with technology development and the attempts being made to do so are misguided.","Two or three credible candidate platforms- with an aim to produce full-scale computers.","One chosen leading candidate platform- since only by focusing all available resources is there a reasonable chance of success.","Other (please indicate in the textbox after \\Submit\\\").\"",null,null,"58f5a1be16df98d81600027f","2017/4/30 22:8:18",7,2,"Reasoning for public funding ","To support small- medium- and large companies to develop quantum technologies products- and applications.",null,90,90]
["Sweden","Swedish Research Council",36,"58f5d64316df98d816000454","2017/4/18 9:17:9",7,1,"Public funding priorities ","Basic research- e.g. because it is premature to move ahead with technology development and the attempts being made to do so are misguided.","Enabling technologies- which would increase the available options for a full-scale quantum computer.","Solutions such as quantum simulation and adiabatic computing- which have a good chance of being useful in the medium term.","Two or three credible candidate platforms- with an aim to produce full-scale computers.","One chosen leading candidate platform- since only by focusing all available resources is there a reasonable chance of success.","Other (please indicate in the textbox after \\Submit\\\").\"",null,null,null,null,null,null,null,null,null,50,0]
["Italy","Universita degli Studi di Napoli Federico II",42,"58f645e116df98d8160007d6","2017/4/18 17:29:51",7,1,"Public funding priorities ","Basic research- e.g. because it is premature to move ahead with technology development and the attempts being made to do so are misguided.","Enabling technologies- which would increase the available options for a full-scale quantum computer.","Solutions such as quantum simulation and adiabatic computing- which have a good chance of being useful in the medium term.","Two or three credible candidate platforms- with an aim to produce full-scale computers.","One chosen leading candidate platform- since only by focusing all available resources is there a reasonable chance of success.","Other (please indicate in the textbox after \\Submit\\\").\"","European companies would have to focus on the design of quantum algorithms for artificial intelligence and robotics. This is the future in my point of view. ",null,"58f645e116df98d8160007d6","2017/4/18 17:30:19",7,2,"Reasoning for public funding ","Currently- Quantum technologies are not enough mature to focus on some specific platforms. As a consequence- a basic research about Quantum Computing and its applications is still necessary to face efficiently the second age of computing. ",null,60,50]
["United States","Quantum AI Laboratory- NASA Ames Research Center ",34,"58f6466316df98d8160007e8","2017/4/20 1:34:52",7,1,"Public funding priorities ","Solutions such as quantum simulation and adiabatic computing- which have a good chance of being useful in the medium term.","Basic research- e.g. because it is premature to move ahead with technology development and the attempts being made to do so are misguided.","Enabling technologies- which would increase the available options for a full-scale quantum computer.","Two or three credible candidate platforms- with an aim to produce full-scale computers.","One chosen leading candidate platform- since only by focusing all available resources is there a reasonable chance of success.","Other (please indicate in the textbox after \\Submit\\\").\"",null,null,"58f6466316df98d8160007e8","2017/4/20 1:35:10",7,2,"Reasoning for public funding "]
["United States","SSH",57,"58f6477516df98d816000823","2017/4/18 17:25:38",7,1,"Public funding priorities ","Enabling technologies- which would increase the available options for a full-scale quantum computer.","Two or three credible candidate platforms- with an aim to produce full-scale computers.","Basic research- e.g. because it is premature to move ahead with technology development and the attempts being made to do so are misguided.","Solutions such as quantum simulation and adiabatic computing- which have a good chance of being useful in the medium term.","One chosen leading candidate platform- since only by focusing all available resources is there a reasonable chance of success.","Other (please indicate in the textbox after \\Submit\\\").\"",null,null,"58f6477516df98d816000823","2017/4/18 17:25:59",7,2,"Reasoning for public funding ",null,null,90,90]
["United States","MIT",56,"58f653ac16df98d816000a1a","2017/5/5 17:36:34",7,1,"Public funding priorities ","Basic research- e.g. because it is premature to move ahead with technology development and the attempts being made to do so are misguided.","Enabling technologies- which would increase the available options for a full-scale quantum computer.","Solutions such as quantum simulation and adiabatic computing- which have a good chance of being useful in the medium term.","Two or three credible candidate platforms- with an aim to produce full-scale computers.","One chosen leading candidate platform- since only by focusing all available resources is there a reasonable chance of success.","Other (please indicate in the textbox after \\Submit\\\").\"",null,null,"58f653ac16df98d816000a1a","2017/5/5 17:36:56",7,2,"Reasoning for public funding ","All of those are applicable",null,80,80]
[null,null,null,"58f6545b16df98d816000a30","2017/4/18 19:1:18",7,1,"Public funding priorities ","Enabling technologies- which would increase the available options for a full-scale quantum computer.","Basic research- e.g. because it is premature to move ahead with technology development and the attempts being made to do so are misguided.","Two or three credible candidate platforms- with an aim to produce full-scale computers.","Solutions such as quantum simulation and adiabatic computing- which have a good chance of being useful in the medium term.","One chosen leading candidate platform- since only by focusing all available resources is there a reasonable chance of success.","Other (please indicate in the textbox after \\Submit\\\").\"",null,null,"58f6545b16df98d816000a30","2017/4/18 19:1:43",7,2,"Reasoning for public funding ",null,null,70,70]
["Sweden","Stockholm University",44,"58f6573c16df98d816000b1e","2017/5/12 23:28:5",7,1,"Public funding priorities ","Solutions such as quantum simulation and adiabatic computing- which have a good chance of being useful in the medium term.","Two or three credible candidate platforms- with an aim to produce full-scale computers.","Enabling technologies- which would increase the available options for a full-scale quantum computer.","Other (please indicate in the textbox after \\Submit\\\").\"","Basic research- e.g. because it is premature to move ahead with technology development and the attempts being made to do so are misguided.","One chosen leading candidate platform- since only by focusing all available resources is there a reasonable chance of success.","I do not think that we know already which technology will be able to function as a scalable quantum computer. Thus- public funding will need to support the most promising ideas- but should not be focused only on one technology- yet. The craziest idea at the moment might make it in the end.",null,"58f6573c16df98d816000b1e","2017/5/12 23:28:16",7,2,"Reasoning for public funding ","I do not think that we know already which technology will be able to function as a scalable quantum computer. Thus- public funding will need to support the most promising ideas- but should not be focused only on one technology- yet. The craziest idea at the moment might make it in the end.",null,80,80]
["Finland","Aalto University",47,"58f667a816df98d816000dd3","2017/4/18 20:19:11",7,1,"Public funding priorities ","Basic research- e.g. because it is premature to move ahead with technology development and the attempts being made to do so are misguided.","Solutions such as quantum simulation and adiabatic computing- which have a good chance of being useful in the medium term.","Two or three credible candidate platforms- with an aim to produce full-scale computers.","Enabling technologies- which would increase the available options for a full-scale quantum computer.","One chosen leading candidate platform- since only by focusing all available resources is there a reasonable chance of success.","Other (please indicate in the textbox after \\Submit\\\").\"",null,null,"58f667a816df98d816000dd3","2017/4/18 20:19:42",7,2,"Reasoning for public funding ","Basic research in the field plus a few experimental platforms for implementing quantum simulations are the most realistic options.",null,100,100]
["United States","Google",44,"58f6727b16df98d816000ea3","2017/4/29 0:31:7",7,1,"Public funding priorities ","Two or three credible candidate platforms- with an aim to produce full-scale computers.","One chosen leading candidate platform- since only by focusing all available resources is there a reasonable chance of success.","Solutions such as quantum simulation and adiabatic computing- which have a good chance of being useful in the medium term.","Enabling technologies- which would increase the available options for a full-scale quantum computer.","Basic research- e.g. because it is premature to move ahead with technology development and the attempts being made to do so are misguided.","Other (please indicate in the textbox after \\Submit\\\").\"",null,null,"58f6727b16df98d816000ea3","2017/4/29 0:31:41",7,2,"Reasoning for public funding "]
["Israel","Hebrew University of Jerusalem",61,"58f6fd33d1c989b104000632","2017/4/19 16:54:1",7,1,"Public funding priorities ","Basic research- e.g. because it is premature to move ahead with technology development and the attempts being made to do so are misguided.","Two or three credible candidate platforms- with an aim to produce full-scale computers.","Enabling technologies- which would increase the available options for a full-scale quantum computer.","Solutions such as quantum simulation and adiabatic computing- which have a good chance of being useful in the medium term.","One chosen leading candidate platform- since only by focusing all available resources is there a reasonable chance of success.","Other (please indicate in the textbox after \\Submit\\\").\"",null,null,"58f6fd33d1c989b104000632","2017/4/19 6:25:49",7,2,"Reasoning for public funding "]
["France","Nokia Bell Labs",null,"58f7180cd1c989b1040007af","2017/4/20 10:27:0",7,1,"Public funding priorities ","Enabling technologies- which would increase the available options for a full-scale quantum computer.","Other (please indicate in the textbox after \\Submit\\\").\"","Two or three credible candidate platforms- with an aim to produce full-scale computers.","Solutions such as quantum simulation and adiabatic computing- which have a good chance of being useful in the medium term.","One chosen leading candidate platform- since only by focusing all available resources is there a reasonable chance of success.","Basic research- e.g. because it is premature to move ahead with technology development and the attempts being made to do so are misguided.","In addition to enabling technologies- the flagship should focus on computer architectures and on quantum algorithms",null,"58f7180cd1c989b1040007af","2017/4/20 10:27:17",7,2,"Reasoning for public funding ","The topic (computing) is still at its fundamental stage- where a public funding could be more convenient. However- I would more support a public funding for the generic building blocks (technologies- architecture- algorithms) which could have an impact on other topics like quantum sensors- instead of a pure public funding focusing only on the quantum computing goal",null,70,70]
["United Kingdom","UCL",36,"58f75bb2d1c989b104000a11","2017/4/19 14:37:37",7,1,"Public funding priorities ","Two or three credible candidate platforms- with an aim to produce full-scale computers.","Solutions such as quantum simulation and adiabatic computing- which have a good chance of being useful in the medium term.","Enabling technologies- which would increase the available options for a full-scale quantum computer.","Basic research- e.g. because it is premature to move ahead with technology development and the attempts being made to do so are misguided.","One chosen leading candidate platform- since only by focusing all available resources is there a reasonable chance of success.","Other (please indicate in the textbox after \\Submit\\\").\"","Question is about hardware: EU public funding should focus on most ambitious high-impact/high-gain applications- which in this area is a full-scale quantum computer. Too early to select one chosen platform- but focusing on two-three credible candidate platforms makes sense. Support of medium-term solutions (e.g. simulation and annealing) is also well justified to demonstrate applications of quantum information processing. Enabling technologies are also very important to underpin both of these areas.",null,"58f75bb2d1c989b104000a11","2017/4/19 14:38:3",7,2,"Reasoning for public funding ",null,null,90]
["Sweden","stockholm university",65,"58f75f9cd1c989b104000a4c","2017/4/19 13:15:50",7,1,"Public funding priorities ","Basic research- e.g. because it is premature to move ahead with technology development and the attempts being made to do so are misguided.","Enabling technologies- which would increase the available options for a full-scale quantum computer.","Solutions such as quantum simulation and adiabatic computing- which have a good chance of being useful in the medium term.","Two or three credible candidate platforms- with an aim to produce full-scale computers.","One chosen leading candidate platform- since only by focusing all available resources is there a reasonable chance of success.","Other (please indicate in the textbox after \\Submit\\\").\"",null,null,"58f75f9cd1c989b104000a4c","2017/4/19 13:16:12",7,2,"Reasoning for public funding "]
["Germany","NMTC",53,"58f79331d1c989b104000ec6","2017/4/19 17:5:40",7,1,"Public funding priorities ","Basic research- e.g. because it is premature to move ahead with technology development and the attempts being made to do so are misguided.","Enabling technologies- which would increase the available options for a full-scale quantum computer.","Solutions such as quantum simulation and adiabatic computing- which have a good chance of being useful in the medium term.","Two or three credible candidate platforms- with an aim to produce full-scale computers.","One chosen leading candidate platform- since only by focusing all available resources is there a reasonable chance of success.","Other (please indicate in the textbox after \\Submit\\\").\"",null,null,"58f79331d1c989b104000ec6","2017/4/19 17:6:4",7,2,"Reasoning for public funding "]
["Italy","Politecnico di Milano",44,"58f8c58882c98b2370000893","2017/4/29 22:16:21",7,1,"Public funding priorities ","Enabling technologies- which would increase the available options for a full-scale quantum computer.","Basic research- e.g. because it is premature to move ahead with technology development and the attempts being made to do so are misguided.","Two or three credible candidate platforms- with an aim to produce full-scale computers.","Solutions such as quantum simulation and adiabatic computing- which have a good chance of being useful in the medium term.","One chosen leading candidate platform- since only by focusing all available resources is there a reasonable chance of success.","Other (please indicate in the textbox after \\Submit\\\").\"",null,null,"58f8c58882c98b2370000893","2017/4/29 22:16:38",7,2,"Reasoning for public funding ","Quantum technologies and enabling technologies still require a lot of research- we don't know the best candidate for a quantum computer.",null,60,50]
["France","CNRS- UPMC- ENS",71,"58f8e97182c98b2370000b0e","2017/5/5 17:9:32",7,1,"Public funding priorities ","Solutions such as quantum simulation and adiabatic computing- which have a good chance of being useful in the medium term.","Enabling technologies- which would increase the available options for a full-scale quantum computer.","Basic research- e.g. because it is premature to move ahead with technology development and the attempts being made to do so are misguided.","Two or three credible candidate platforms- with an aim to produce full-scale computers.","One chosen leading candidate platform- since only by focusing all available resources is there a reasonable chance of success.","Other (please indicate in the textbox after \\Submit\\\").\"",null,null,"58f8e97182c98b2370000b0e","2017/5/5 17:9:56",7,2,"Reasoning for public funding ",null,null,100,100]
["United States","IntControl LLC",47,"58f9f72ddce69e95310006d6","2017/4/22 19:6:14",7,1,"Public funding priorities ","Basic research- e.g. because it is premature to move ahead with technology development and the attempts being made to do so are misguided.","Enabling technologies- which would increase the available options for a full-scale quantum computer.","Two or three credible candidate platforms- with an aim to produce full-scale computers.","Solutions such as quantum simulation and adiabatic computing- which have a good chance of being useful in the medium term.","One chosen leading candidate platform- since only by focusing all available resources is there a reasonable chance of success.","Other (please indicate in the textbox after \\Submit\\\").\"",null,null,null,null,null,null,null,null,null,80,72]
["United Kingdom","None",46,"58fa4404dce69e9531000a61","2017/4/28 16:34:1",7,1,"Public funding priorities ","Two or three credible candidate platforms- with an aim to produce full-scale computers.","Basic research- e.g. because it is premature to move ahead with technology development and the attempts being made to do so are misguided.","Solutions such as quantum simulation and adiabatic computing- which have a good chance of being useful in the medium term.","Enabling technologies- which would increase the available options for a full-scale quantum computer.","One chosen leading candidate platform- since only by focusing all available resources is there a reasonable chance of success.","Other (please indicate in the textbox after \\Submit\\\").\"",null,null,"58fa4404dce69e9531000a61","2017/4/28 16:34:41",7,2,"Reasoning for public funding ","It makes no sense to put all eggs in one basket at this stage- but a few frontrunners worthy of pursuit are emerging",null,65,75]
["Switzerland","Paul Scherrer Institut",32,"58fdab2d2c13bf6d64000233","2017/4/24 7:41:6",7,1,"Public funding priorities ","Basic research- e.g. because it is premature to move ahead with technology development and the attempts being made to do so are misguided.","Solutions such as quantum simulation and adiabatic computing- which have a good chance of being useful in the medium term.","Enabling technologies- which would increase the available options for a full-scale quantum computer.","Two or three credible candidate platforms- with an aim to produce full-scale computers.","One chosen leading candidate platform- since only by focusing all available resources is there a reasonable chance of success.","Other (please indicate in the textbox after \\Submit\\\").\""]
["Germany","ASML",54,"58ff77bc1647f8e45f00086a","2017/4/25 16:55:41",7,1,"Public funding priorities ","One chosen leading candidate platform- since only by focusing all available resources is there a reasonable chance of success.","Solutions such as quantum simulation and adiabatic computing- which have a good chance of being useful in the medium term.","Enabling technologies- which would increase the available options for a full-scale quantum computer.","Basic research- e.g. because it is premature to move ahead with technology development and the attempts being made to do so are misguided.","Two or three credible candidate platforms- with an aim to produce full-scale computers.","Other (please indicate in the textbox after \\Submit\\\").\"",null,null,"58ff77bc1647f8e45f00086a","2017/4/25 16:56:18",7,2,"Reasoning for public funding ","Europe is not strong enough to cope with 2 or 3 quantum plattform in paralell. ",null,66,66]
["Finland","Aalto University",40,"5904f5b5b78ea63806000843","2017/4/29 20:50:56",7,1,"Public funding priorities ","Basic research- e.g. because it is premature to move ahead with technology development and the attempts being made to do so are misguided.","Enabling technologies- which would increase the available options for a full-scale quantum computer.","Solutions such as quantum simulation and adiabatic computing- which have a good chance of being useful in the medium term.","Two or three credible candidate platforms- with an aim to produce full-scale computers.","One chosen leading candidate platform- since only by focusing all available resources is there a reasonable chance of success.","Other (please indicate in the textbox after \\Submit\\\").\"",null,null,"5904f5b5b78ea63806000843","2017/4/29 20:51:44",7,2,"Reasoning for public funding ","It is necessary to secure the continuity of the basic research and development of several platforms in this field as there is lot to be understood and accomplished before the quantum computing can be realised in large scale. Individual companies can make selection between platforms. The enabling technologies are crucial for the development of scalability and production of the feasible technologies.",null,50,50]
["Japan","The University of Tokyo",49,"5905508ce3cf73976b00018f","2017/4/30 4:27:50",7,1,"Public funding priorities ","Basic research- e.g. because it is premature to move ahead with technology development and the attempts being made to do so are misguided.","Enabling technologies- which would increase the available options for a full-scale quantum computer.","Solutions such as quantum simulation and adiabatic computing- which have a good chance of being useful in the medium term.","Two or three credible candidate platforms- with an aim to produce full-scale computers.","One chosen leading candidate platform- since only by focusing all available resources is there a reasonable chance of success.","Other (please indicate in the textbox after \\Submit\\\").\"",null,null,"5905508ce3cf73976b00018f","2017/4/30 4:28:21",7,2,"Reasoning for public funding ",null,null,80,80]
["Greece","Technical University of Crete",41,"5908d40785d9a7453b000824","2017/5/2 19:43:39",7,1,"Public funding priorities ","Basic research- e.g. because it is premature to move ahead with technology development and the attempts being made to do so are misguided.","Solutions such as quantum simulation and adiabatic computing- which have a good chance of being useful in the medium term.","Enabling technologies- which would increase the available options for a full-scale quantum computer.","Two or three credible candidate platforms- with an aim to produce full-scale computers.","One chosen leading candidate platform- since only by focusing all available resources is there a reasonable chance of success.","Other (please indicate in the textbox after \\Submit\\\").\"",null,null,"5908d40785d9a7453b000824","2017/5/2 19:44:21",7,2,"Reasoning for public funding ",null,null,90,80]
["Germany","RWTH Aachen University and Forschungszentrum Juelich",37,"590c94996e214ad4100007be","2017/5/5 15:23:14",7,1,"Public funding priorities ","Two or three credible candidate platforms- with an aim to produce full-scale computers.","Enabling technologies- which would increase the available options for a full-scale quantum computer.","Solutions such as quantum simulation and adiabatic computing- which have a good chance of being useful in the medium term.","Basic research- e.g. because it is premature to move ahead with technology development and the attempts being made to do so are misguided.","One chosen leading candidate platform- since only by focusing all available resources is there a reasonable chance of success.","Other (please indicate in the textbox after \\Submit\\\").\""]
["Hungary","Wigner Research Centre for Physics",39,"590cc7306e214ad410000add","2017/5/5 20:35:10",7,1,"Public funding priorities ","Basic research- e.g. because it is premature to move ahead with technology development and the attempts being made to do so are misguided.","Solutions such as quantum simulation and adiabatic computing- which have a good chance of being useful in the medium term.","Two or three credible candidate platforms- with an aim to produce full-scale computers.","Enabling technologies- which would increase the available options for a full-scale quantum computer.","One chosen leading candidate platform- since only by focusing all available resources is there a reasonable chance of success.","Other (please indicate in the textbox after \\Submit\\\").\"",null,null,"590cc7306e214ad410000add","2017/5/5 20:35:24",7,2,"Reasoning for public funding ","At this stage it is too early to tell which platform will be feasible for building a quantum computer. Supporting too many platforms defocuses the available resources. Funding 2-3 (or 4) platforms seems reasonable.",null,70,60]
["Finland","Aalto University",59,"590dd8d776c6fbf97c000472","2017/5/6 20:21:23",7,1,"Public funding priorities ","Enabling technologies- which would increase the available options for a full-scale quantum computer.","Basic research- e.g. because it is premature to move ahead with technology development and the attempts being made to do so are misguided.","Solutions such as quantum simulation and adiabatic computing- which have a good chance of being useful in the medium term.","Two or three credible candidate platforms- with an aim to produce full-scale computers.","One chosen leading candidate platform- since only by focusing all available resources is there a reasonable chance of success.","Other (please indicate in the textbox after \\Submit\\\").\"",null,null,"590dd8d776c6fbf97c000472","2017/5/6 20:21:42",7,2,"Reasoning for public funding ","Enabling technologies should be made a priority- because there are many materials related problems that should be resolved before final choices on competing technologies can be made",null,60,60]
["Italy","LFoundry s.r.l.",55,"5910260330ff4fca44000249","2017/5/8 8:11:7",7,1,"Public funding priorities ","Basic research- e.g. because it is premature to move ahead with technology development and the attempts being made to do so are misguided.","Enabling technologies- which would increase the available options for a full-scale quantum computer.","Solutions such as quantum simulation and adiabatic computing- which have a good chance of being useful in the medium term.","Two or three credible candidate platforms- with an aim to produce full-scale computers.","One chosen leading candidate platform- since only by focusing all available resources is there a reasonable chance of success.","Other (please indicate in the textbox after \\Submit\\\").\"",null,null,"5910260330ff4fca44000249","2017/5/8 8:11:24",7,2,"Reasoning for public funding ",null,null,null,null,"please enter an explanation for your answer"]
["United Kingdom","Cardiff University",45,"5910a43930ff4fca44000627","2017/5/8 19:59:23",7,1,"Public funding priorities ","Enabling technologies- which would increase the available options for a full-scale quantum computer.","Basic research- e.g. because it is premature to move ahead with technology development and the attempts being made to do so are misguided.","Solutions such as quantum simulation and adiabatic computing- which have a good chance of being useful in the medium term.","Two or three credible candidate platforms- with an aim to produce full-scale computers.","One chosen leading candidate platform- since only by focusing all available resources is there a reasonable chance of success.","Other (please indicate in the textbox after \\Submit\\\").\"","It's too early to say which quantum technologies and platforms will ultimately be of use and be scalable. They all struggle with the same problems and alternative approaches may be needed. Best to keep the research as broad as possible instead of narrowly concentrating on a few options- as it is impossible to predict. I'm fearing that even the focus on \\IT\\\" is dangerously narrow and motivated by the success of current existing technologies rather than emerging future ones.\"",null,"5910a43930ff4fca44000627","2017/5/8 19:59:43",7,2,"Reasoning for public funding ","We need a broad basis for potential approaches rather than narrow focus on a few options. We also must avoid focus on trying to simply come up with better solutions to technologies that are currently being used - it will only ever be a minor improvement.",null,90,90]
["Netherlands","Director at QuTech",42,"5911d11356953dae2b0004fb","2017/5/9 15:53:50",7,1,"Public funding priorities ","Basic research- e.g. because it is premature to move ahead with technology development and the attempts being made to do so are misguided.","Enabling technologies- which would increase the available options for a full-scale quantum computer.","Solutions such as quantum simulation and adiabatic computing- which have a good chance of being useful in the medium term.","Two or three credible candidate platforms- with an aim to produce full-scale computers.","One chosen leading candidate platform- since only by focusing all available resources is there a reasonable chance of success.","Other (please indicate in the textbox after \\Submit\\\").\"",null,null,"5911d11356953dae2b0004fb","2017/5/9 15:54:26",7,2,"Reasoning for public funding ","I think it's too early to choose- so fund the most promising platforms in a concentrated way. After the ramp-up- strategic decisions can be made on which efforts to strengthen and which to stop / slow down",null,80,80]
["Netherlands","Delft University of Technology",24,"5911da0c56953dae2b0005a7","2017/5/9 15:24:15",7,1,"Public funding priorities ","Two or three credible candidate platforms- with an aim to produce full-scale computers.","Solutions such as quantum simulation and adiabatic computing- which have a good chance of being useful in the medium term.","Basic research- e.g. because it is premature to move ahead with technology development and the attempts being made to do so are misguided.","Enabling technologies- which would increase the available options for a full-scale quantum computer.","One chosen leading candidate platform- since only by focusing all available resources is there a reasonable chance of success.","Other (please indicate in the textbox after \\Submit\\\").\"",null,null,"5911da0c56953dae2b0005a7","2017/5/9 15:24:39",7,2,"Reasoning for public funding ",null,null,40,40]
["Netherlands","QuTech- TU Delft",25,"5911e10256953dae2b00079d","2017/5/9 16:11:43",7,1,"Public funding priorities ","Solutions such as quantum simulation and adiabatic computing- which have a good chance of being useful in the medium term.","Two or three credible candidate platforms- with an aim to produce full-scale computers.","Basic research- e.g. because it is premature to move ahead with technology development and the attempts being made to do so are misguided.","Enabling technologies- which would increase the available options for a full-scale quantum computer.","One chosen leading candidate platform- since only by focusing all available resources is there a reasonable chance of success.","Other (please indicate in the textbox after \\Submit\\\").\"",null,null,"5911e10256953dae2b00079d","2017/5/9 16:12:17",7,2,"Reasoning for public funding ",null,null,80]
["Netherlands","QuTech TUDelft",36,"5912009156953dae2b000b30","2017/5/9 18:11:0",7,1,"Public funding priorities ","Enabling technologies- which would increase the available options for a full-scale quantum computer.","One chosen leading candidate platform- since only by focusing all available resources is there a reasonable chance of success.","Basic research- e.g. because it is premature to move ahead with technology development and the attempts being made to do so are misguided.","Solutions such as quantum simulation and adiabatic computing- which have a good chance of being useful in the medium term.","Two or three credible candidate platforms- with an aim to produce full-scale computers.","Other (please indicate in the textbox after \\Submit\\\").\"",null,null,"5912009156953dae2b000b30","2017/5/9 18:11:25",7,2,"Reasoning for public funding ",null,null,90]
["Netherlands","TNO",41,"5912ade8bdf6d44f18000295","2017/5/10 6:53:11",7,1,"Public funding priorities ","Two or three credible candidate platforms- with an aim to produce full-scale computers.","Enabling technologies- which would increase the available options for a full-scale quantum computer.","One chosen leading candidate platform- since only by focusing all available resources is there a reasonable chance of success.","Basic research- e.g. because it is premature to move ahead with technology development and the attempts being made to do so are misguided.","Solutions such as quantum simulation and adiabatic computing- which have a good chance of being useful in the medium term.","Other (please indicate in the textbox after \\Submit\\\").\"",null,null,"5912ade8bdf6d44f18000295","2017/5/10 6:53:46",7,2,"Reasoning for public funding ","A certain focus on a few platforms would lead to focus and critical technology and system oriented questions towards full-scale computers. This in turn will provide clear roadmap-oriented work and finally product definition. And potentially clear statements on the limitation of one technology over this other.",null,100,100]
["Netherlands","TU Delft",33,"5912c704bdf6d44f18000402","2017/5/10 8:19:44",7,1,"Public funding priorities ","Basic research- e.g. because it is premature to move ahead with technology development and the attempts being made to do so are misguided.","Solutions such as quantum simulation and adiabatic computing- which have a good chance of being useful in the medium term.","Enabling technologies- which would increase the available options for a full-scale quantum computer.","Two or three credible candidate platforms- with an aim to produce full-scale computers.","One chosen leading candidate platform- since only by focusing all available resources is there a reasonable chance of success.","Other (please indicate in the textbox after \\Submit\\\").\"",null,null,"5912c704bdf6d44f18000402","2017/5/10 8:20:18",7,2,"Reasoning for public funding ","The field still needs some basic research.  Since an optimal candidate is not established yet- it would be prudent to keep funding several possible candidates. Then- it should 1st focus on some concrete result with the 1st generation quantum computer before moving onto optimization of the machine itself",null,25,25]
["Netherlands","Delft University of Technology",26,"5912ebe1bdf6d44f1800061b","2017/5/10 10:38:1",7,1,"Public funding priorities ","Basic research- e.g. because it is premature to move ahead with technology development and the attempts being made to do so are misguided.","Enabling technologies- which would increase the available options for a full-scale quantum computer.","Solutions such as quantum simulation and adiabatic computing- which have a good chance of being useful in the medium term.","Two or three credible candidate platforms- with an aim to produce full-scale computers.","One chosen leading candidate platform- since only by focusing all available resources is there a reasonable chance of success.","Other (please indicate in the textbox after \\Submit\\\").\"",null,null,"5912ebe1bdf6d44f1800061b","2017/5/10 10:38:39",7,2,"Reasoning for public funding "]
["United Kingdom","University of Sussex",23,"5912f6e7bdf6d44f18000711","2017/5/10 12:12:54",7,1,"Public funding priorities ","Two or three credible candidate platforms- with an aim to produce full-scale computers.","Enabling technologies- which would increase the available options for a full-scale quantum computer.","One chosen leading candidate platform- since only by focusing all available resources is there a reasonable chance of success.","Solutions such as quantum simulation and adiabatic computing- which have a good chance of being useful in the medium term.","Basic research- e.g. because it is premature to move ahead with technology development and the attempts being made to do so are misguided.","Other (please indicate in the textbox after \\Submit\\\").\"",null,null,"5912f6e7bdf6d44f18000711","2017/5/10 12:13:38",7,2,"Reasoning for public funding ","Many platform have show extremely promising results. A current scalable architectures start to be within reach of current technologies.",null,90,80]
["United Kingdom","Heriot-Watt University",44,"59130103bdf6d44f180007b7","2017/5/10 14:10:5",7,1,"Public funding priorities ","Two or three credible candidate platforms- with an aim to produce full-scale computers.","Basic research- e.g. because it is premature to move ahead with technology development and the attempts being made to do so are misguided.","Solutions such as quantum simulation and adiabatic computing- which have a good chance of being useful in the medium term.","Enabling technologies- which would increase the available options for a full-scale quantum computer.","One chosen leading candidate platform- since only by focusing all available resources is there a reasonable chance of success.","Other (please indicate in the textbox after \\Submit\\\").\"",null,null,"59130103bdf6d44f180007b7","2017/5/10 14:10:47",7,2,"Reasoning for public funding ","Given the status of the development I see a combination of a focus on leading candidate platforms to gather with an enhancement of the basic research activity as the best rout forward.",null,70,70]
["Switzerland","ETH Zurich",27,"59130228bdf6d44f1800080e","2017/5/10 12:36:40",7,1,"Public funding priorities ","Enabling technologies- which would increase the available options for a full-scale quantum computer.","Basic research- e.g. because it is premature to move ahead with technology development and the attempts being made to do so are misguided.","Two or three credible candidate platforms- with an aim to produce full-scale computers.","Solutions such as quantum simulation and adiabatic computing- which have a good chance of being useful in the medium term.","One chosen leading candidate platform- since only by focusing all available resources is there a reasonable chance of success.","Other (please indicate in the textbox after \\Submit\\\").\"","I think the focus onto specific implementation should be within commercial application- while public funding should support a broad approach of many platforms",null,"59130228bdf6d44f1800080e","2017/5/10 12:37:14",7,2,"Reasoning for public funding "]
["Greece","Universitat Autonoma de Barcelona",36,"59130582bdf6d44f180008ea","2017/5/10 14:5:51",7,1,"Public funding priorities ","Two or three credible candidate platforms- with an aim to produce full-scale computers.","Solutions such as quantum simulation and adiabatic computing- which have a good chance of being useful in the medium term.","Basic research- e.g. because it is premature to move ahead with technology development and the attempts being made to do so are misguided.","Enabling technologies- which would increase the available options for a full-scale quantum computer.","One chosen leading candidate platform- since only by focusing all available resources is there a reasonable chance of success.","Other (please indicate in the textbox after \\Submit\\\").\"",null,null,"59130582bdf6d44f180008ea","2017/5/10 14:6:34",7,2,"Reasoning for public funding ","At the moment it seems to me that there are 2 or 3 viable alternatives.  So I think it is wise to give each of them a chance.  In addition- even if only one of the three candidates succeeds- the spin-off technology that will emerge would certainly be viable.  \\r\\n\\r\\nIn addition- we should look at the long term goal which is a fully integrated quantum infrastructure (quantum internet if you will) and this would require a successfull marriage of several hybrid infrastructures (optics- condensed matter- silicon perhaps).  It is therefore preferable to hedge ones bets on two or three good candidates in order to have the best gains in the long term.",null,75,75]
["United Kingdom","University of Sheffield",54,"5913069abdf6d44f1800091a","2017/5/10 12:50:19",7,1,"Public funding priorities ","Enabling technologies- which would increase the available options for a full-scale quantum computer.","Solutions such as quantum simulation and adiabatic computing- which have a good chance of being useful in the medium term.","Two or three credible candidate platforms- with an aim to produce full-scale computers.","Basic research- e.g. because it is premature to move ahead with technology development and the attempts being made to do so are misguided.","One chosen leading candidate platform- since only by focusing all available resources is there a reasonable chance of success.","Other (please indicate in the textbox after \\Submit\\\").\"",null,null,"5913069abdf6d44f1800091a","2017/5/10 12:50:51",7,2,"Reasoning for public funding ","Most present day options are not scalable and considerable funding is needed for further enabling work. There is no single viable candidate and multiple options need to be explored",null,70,60]
[null,"HHU Duesseldorf",22,"5913085abdf6d44f1800096f","2017/5/10 15:16:34",7,1,"Public funding priorities ","Enabling technologies- which would increase the available options for a full-scale quantum computer.","Two or three credible candidate platforms- with an aim to produce full-scale computers.","Basic research- e.g. because it is premature to move ahead with technology development and the attempts being made to do so are misguided.","Solutions such as quantum simulation and adiabatic computing- which have a good chance of being useful in the medium term.","One chosen leading candidate platform- since only by focusing all available resources is there a reasonable chance of success.","Other (please indicate in the textbox after \\Submit\\\").\"",null,null,"5913085abdf6d44f1800096f","2017/5/10 15:17:3",7,2,"Reasoning for public funding ","The main goal should always be the full scale quantum computer. \\r\\nHowever- since it is too early to say which platform might be the best- we should focus on two or three candidate platforms. Namley:\\r\\nIon traps (on a chip)\\r\\nSolid state devices\\r\\n\\r\\nand of course photons as flying qubits",null,60,75]
["United Kingdom","University of Strathclyde",37,"59130bdcbdf6d44f18000a81","2017/5/10 13:13:34",7,1,"Public funding priorities ","Two or three credible candidate platforms- with an aim to produce full-scale computers.","Enabling technologies- which would increase the available options for a full-scale quantum computer.","Other (please indicate in the textbox after \\Submit\\\").\"","Basic research- e.g. because it is premature to move ahead with technology development and the attempts being made to do so are misguided.","Solutions such as quantum simulation and adiabatic computing- which have a good chance of being useful in the medium term.","One chosen leading candidate platform- since only by focusing all available resources is there a reasonable chance of success.","Tools and techniques for software to run on a wide-range of quantum computing platforms seems essential- seeing as we don't know which technology will prove most viable -- and can't even start to judge until we have trial applications.",null,"59130bdcbdf6d44f18000a81","2017/5/10 13:14:11",7,2,"Reasoning for public funding ","I think that the technology is at the point where credible quantum computers are possible- but it's not obvious which technologies will be the best.  Therefore supporting a range of options- and continuing enabling and basic research to produce more options is the best way forward.",null,100,100]
["France","Aix-Marseille Universite",38,"59130e6ebdf6d44f18000b39","2017/5/10 13:25:30",7,1,"Public funding priorities ","Basic research- e.g. because it is premature to move ahead with technology development and the attempts being made to do so are misguided.","Solutions such as quantum simulation and adiabatic computing- which have a good chance of being useful in the medium term.","Enabling technologies- which would increase the available options for a full-scale quantum computer.","Two or three credible candidate platforms- with an aim to produce full-scale computers.","One chosen leading candidate platform- since only by focusing all available resources is there a reasonable chance of success.","Other (please indicate in the textbox after \\Submit\\\").\"",null,null,"59130e6ebdf6d44f18000b39","2017/5/10 13:26:4",7,2,"Reasoning for public funding ","Quantum simulation is the next application",null,100,100]
["United Kingdom","Imperial College",25,"59132a29bdf6d44f18000fc4","2017/5/10 15:49:58",7,1,"Public funding priorities ","Enabling technologies- which would increase the available options for a full-scale quantum computer.","Solutions such as quantum simulation and adiabatic computing- which have a good chance of being useful in the medium term.","Basic research- e.g. because it is premature to move ahead with technology development and the attempts being made to do so are misguided.","Two or three credible candidate platforms- with an aim to produce full-scale computers.","One chosen leading candidate platform- since only by focusing all available resources is there a reasonable chance of success.","Other (please indicate in the textbox after \\Submit\\\").\"",null,null,"59132a29bdf6d44f18000fc4","2017/5/10 15:50:34",7,2,"Reasoning for public funding ","Small-scale quantum technologies and quantum simulators may be achievable in the short term. A full-scale quantum computer is a long way off. Basic research is always important.",null,60,80]
["Sweden","Chalmers University of Technology",26,"5913342bbdf6d44f18001106","2017/5/10 15:46:56",7,1,"Public funding priorities ","Basic research- e.g. because it is premature to move ahead with technology development and the attempts being made to do so are misguided.","Enabling technologies- which would increase the available options for a full-scale quantum computer.","Solutions such as quantum simulation and adiabatic computing- which have a good chance of being useful in the medium term.","Two or three credible candidate platforms- with an aim to produce full-scale computers.","One chosen leading candidate platform- since only by focusing all available resources is there a reasonable chance of success.","Other (please indicate in the textbox after \\Submit\\\").\"",null,null,"5913342bbdf6d44f18001106","2017/5/10 15:47:26",7,2,"Reasoning for public funding "]
["United Kingdom","University of Sussex",33,"59134dbebdf6d44f1800133e","2017/5/10 17:55:16",7,1,"Public funding priorities ","Basic research- e.g. because it is premature to move ahead with technology development and the attempts being made to do so are misguided.","Enabling technologies- which would increase the available options for a full-scale quantum computer.","Solutions such as quantum simulation and adiabatic computing- which have a good chance of being useful in the medium term.","Two or three credible candidate platforms- with an aim to produce full-scale computers.","One chosen leading candidate platform- since only by focusing all available resources is there a reasonable chance of success.","Other (please indicate in the textbox after \\Submit\\\").\"",null,null,"59134dbebdf6d44f1800133e","2017/5/10 17:55:51",7,2,"Reasoning for public funding "]
["Netherlands","QuTech",40,"591358f8bdf6d44f1800142a","2017/5/10 18:53:6",7,1,"Public funding priorities ","Two or three credible candidate platforms- with an aim to produce full-scale computers.","One chosen leading candidate platform- since only by focusing all available resources is there a reasonable chance of success.","Enabling technologies- which would increase the available options for a full-scale quantum computer.","Basic research- e.g. because it is premature to move ahead with technology development and the attempts being made to do so are misguided.","Solutions such as quantum simulation and adiabatic computing- which have a good chance of being useful in the medium term.","Other (please indicate in the textbox after \\Submit\\\").\"",null,null,"591358f8bdf6d44f1800142a","2017/5/10 18:53:43",7,2,"Reasoning for public funding ","Focus is required to ensure the Flagship has any impact. Flagship should aim high- so for the large-scale quantum computing.",null,90,100]
["Switzerland","University of Geneva",49,"59141c947284506612000337","2017/5/11 8:58:20",7,1,"Public funding priorities ","Basic research- e.g. because it is premature to move ahead with technology development and the attempts being made to do so are misguided.","Enabling technologies- which would increase the available options for a full-scale quantum computer.","Solutions such as quantum simulation and adiabatic computing- which have a good chance of being useful in the medium term.","Two or three credible candidate platforms- with an aim to produce full-scale computers.","One chosen leading candidate platform- since only by focusing all available resources is there a reasonable chance of success.","Other (please indicate in the textbox after \\Submit\\\").\"",null,null,"59141c947284506612000337","2017/5/11 8:58:52",7,2,"Reasoning for public funding ",null,null,70]
["Finland","University of Turku",43,"591463e0728450661200066e","2017/5/11 13:39:50",7,1,"Public funding priorities ","Basic research- e.g. because it is premature to move ahead with technology development and the attempts being made to do so are misguided.","Solutions such as quantum simulation and adiabatic computing- which have a good chance of being useful in the medium term.","Two or three credible candidate platforms- with an aim to produce full-scale computers.","Enabling technologies- which would increase the available options for a full-scale quantum computer.","One chosen leading candidate platform- since only by focusing all available resources is there a reasonable chance of success.","Other (please indicate in the textbox after \\Submit\\\").\"",null,null,"591463e0728450661200066e","2017/5/11 13:40:19",7,2,"Reasoning for public funding ",null,null,100]
["Greece","Democritus University of Thrace",57,"5914aca27284506612000968","2017/5/11 19:27:50",7,1,"Public funding priorities ","Enabling technologies- which would increase the available options for a full-scale quantum computer.","Solutions such as quantum simulation and adiabatic computing- which have a good chance of being useful in the medium term.","Basic research- e.g. because it is premature to move ahead with technology development and the attempts being made to do so are misguided.","Two or three credible candidate platforms- with an aim to produce full-scale computers.","One chosen leading candidate platform- since only by focusing all available resources is there a reasonable chance of success.","Other (please indicate in the textbox after \\Submit\\\").\"","A funding priority shoud be the integration of quantum computers in hybrid systems including high performance computing (HPC)- neuromorphic computing etc. Interfaces between HPC platforms and quantum computers shoud be developed. There is no need to wait for quantum cumputers with a large number of qubits to be available. Quantum computer simulators can be used instead of actual quantum computers- until they become available.",null,"5914aca27284506612000968","2017/5/11 19:28:22",7,2,"Reasoning for public funding ",null,null,80]
["Switzerland","ETH Zurich",29,"5915606c3b6627457c000516","2017/5/12 7:36:20",7,1,"Public funding priorities ","Basic research- e.g. because it is premature to move ahead with technology development and the attempts being made to do so are misguided.","Enabling technologies- which would increase the available options for a full-scale quantum computer.","Solutions such as quantum simulation and adiabatic computing- which have a good chance of being useful in the medium term.","Two or three credible candidate platforms- with an aim to produce full-scale computers.","One chosen leading candidate platform- since only by focusing all available resources is there a reasonable chance of success.","Other (please indicate in the textbox after \\Submit\\\").\"",null,null,"5915606c3b6627457c000516","2017/5/12 7:36:49",7,2,"Reasoning for public funding "]
["Canada","ETH Zurich",21,"59156ba73b6627457c0005de","2017/5/12 8:33:45",7,1,"Public funding priorities ","Enabling technologies- which would increase the available options for a full-scale quantum computer.","Two or three credible candidate platforms- with an aim to produce full-scale computers.","Solutions such as quantum simulation and adiabatic computing- which have a good chance of being useful in the medium term.","Basic research- e.g. because it is premature to move ahead with technology development and the attempts being made to do so are misguided.","One chosen leading candidate platform- since only by focusing all available resources is there a reasonable chance of success.","Other (please indicate in the textbox after \\Submit\\\").\"",null,null,"59156ba73b6627457c0005de","2017/5/12 8:34:15",7,2,"Reasoning for public funding ",null,null,60,0]
["Netherlands","QuTech- TU Delft",40,"5915981e3b6627457c0007e7","2017/5/12 11:22:43",7,1,"Public funding priorities ","Two or three credible candidate platforms- with an aim to produce full-scale computers.","One chosen leading candidate platform- since only by focusing all available resources is there a reasonable chance of success.","Enabling technologies- which would increase the available options for a full-scale quantum computer.","Basic research- e.g. because it is premature to move ahead with technology development and the attempts being made to do so are misguided.","Solutions such as quantum simulation and adiabatic computing- which have a good chance of being useful in the medium term.","Other (please indicate in the textbox after \\Submit\\\").\"","Quantum internet requires only few qubit quantum computers to enable many interesting applications- so a strong focus should be in this domain.",null,null,null,null,null,null,null,null,100,100]
["Estonia","ETH Zurich",28,"5915e2573b6627457c000bb7","2017/5/12 16:56:18",7,1,"Public funding priorities ","Basic research- e.g. because it is premature to move ahead with technology development and the attempts being made to do so are misguided.","Enabling technologies- which would increase the available options for a full-scale quantum computer.","Two or three credible candidate platforms- with an aim to produce full-scale computers.","One chosen leading candidate platform- since only by focusing all available resources is there a reasonable chance of success.","Solutions such as quantum simulation and adiabatic computing- which have a good chance of being useful in the medium term.","Other (please indicate in the textbox after \\Submit\\\").\"",null,null,"5915e2573b6627457c000bb7","2017/5/12 16:56:45",7,2,"Reasoning for public funding ",null,null,75]
["Spain","University of the Basque Country",53,"5916d8b05d9b3ef7710004cc","2017/5/13 11:7:50",7,1,"Public funding priorities ","Basic research- e.g. because it is premature to move ahead with technology development and the attempts being made to do so are misguided.","Solutions such as quantum simulation and adiabatic computing- which have a good chance of being useful in the medium term.","Two or three credible candidate platforms- with an aim to produce full-scale computers.","Enabling technologies- which would increase the available options for a full-scale quantum computer.","One chosen leading candidate platform- since only by focusing all available resources is there a reasonable chance of success.","Other (please indicate in the textbox after \\Submit\\\").\"",null,null,"5916d8b05d9b3ef7710004cc","2017/5/13 11:8:18",7,2,"Reasoning for public funding ","Current available approaches in quantum computing are rather primitive and will not lead to anything really useful in the near future. Current quantum computing paradigms and mostly following successful digital classical concepts that are not suitable for scalability and usefulness in quantum computing applications. Therefore- I think that basic research is still needed- not to follow or develop current paradigms but to propose and design still highly disruptive novel concepts in quantum computing.\\r\\n\\r\\nIn between- solutions and advances involving current quantum simulation and adiabatic computing efforts are necessary. But this will be sooner or later replaced by novel disruptive quantum computing paradigms. Which? We are working on that and I will not display here my thoughts- just hear my talks and read my papers.\\r\\n\\r\\nIt is also time to discard or put some pressure on quantum platforms that are not showing a path towards scalability or are just following primitive concepts that may not work.\\r\\n\\r\\nDigital quantum computing with quantum error correction is a path to failure in the next decades unless there is a technological breaktrhough that is not happening and- apparently- not being sought. Analog quantum computing- including adiabatic or topological methods- is just a current fashion that will be sooner or later overcome by novel disruptive quantum computing paradigms.",null,100,100]
["United Kingdom","University of Sussex",30,"591957ef7f8ed816520001da","2017/5/15 7:54:5",7,1,"Public funding priorities ","Two or three credible candidate platforms- with an aim to produce full-scale computers.","Enabling technologies- which would increase the available options for a full-scale quantum computer.","Solutions such as quantum simulation and adiabatic computing- which have a good chance of being useful in the medium term.","One chosen leading candidate platform- since only by focusing all available resources is there a reasonable chance of success.","Basic research- e.g. because it is premature to move ahead with technology development and the attempts being made to do so are misguided.","Other (please indicate in the textbox after \\Submit\\\").\"",null,null,"591957ef7f8ed816520001da","2017/5/15 8:48:47",7,2,"Reasoning for public funding ","The fundamental building blocks of a trapped-ion quantum computer have been demonstrated to an exceptional level. While further improvements are required such as further increased gate fidelities- it is now important to push towards full-scale devices to bring sub-systems together and tackle the challenges that will undoubtedly be uncovered when scaling up. This is also the only way to remain competitive in an increasingly fast moving environment. Focusing on two or three credible platforms will allow for sufficient scope to encompass different promising approaches while providing the required focus to push ahead.",null,90,90]
[]
[]
[]
[]
[]
[]
[]
[]
[]
[]
[]
[]
[]
[]
[]
[]
[]
[]
[]
[]
[]
[]
[]
[]
[]
[]
[]
[]
[]
[]
[]
[]
[]
[]
[]
[]
[null,null,null,null,null,null,null,"No of responses",{"$f":"COUNT(I2:I127)","v":0},0,0,0,0,0,0,{"$f":"COUNT(Q2:Q127)","v":0}]

{"sheet":"Charting","index":1,"n_rows":33,"n_cols":15,"rows_kept":33,"cut":false,"hidden":false,"merged":[]}
["Unweighted scores","Basic research","Enabling technologies","Two or three credible candidate platforms","Medium term (quantum simulation, adiabatic computing etc.)","One leading candidate platform","Other",null,null,null,null,"Checksum",null,"Median confidences","Median confidences in reasoning"]
["Highest priority",0.46666666666666706,0.21904761904761896,0.18095238095238089,9.5238095238095233E-2,1.9047619047619049E-2,1.9047619047619049E-2,null,null,null,{"$f":"COUNTA(Foglio1!F:F)-1","v":105},{"$f":"SUM(B2:J2)","v":1.0000000000000002},null,{"$f":"MEDIAN(OFFSET(Foglio1!X2,0,0,$K$2,1))","v":80},{"$f":"MEDIAN(OFFSET(Foglio1!Y2,0,0,$K$2,1))","v":80}]
["Priority 2",0.15238095238095234,0.46666666666666706,0.10476190476190475,0.22857142857142848,3.8095238095238099E-2,9.5238095238095247E-3,null,null,null,"Number of categories",1.0000000000000002]
["Priority 3",0.1333333333333333,0.17142857142857137,0.25714285714285706,0.40952380952380979,1.9047619047619049E-2,9.5238095238095247E-3,null,null,null,{"$f":"COUNTA(B1:J1)","v":6},1.0000000000000002]
["Priority 4",0.18095238095238089,0.12380952380952379,0.42857142857142888,0.19047619047619041,6.666666666666668E-2,9.5238095238095247E-3,null,null,null,"Total of confidences",1.0000000000000002]
["Priority 5",4.7619047619047623E-2,1.9047619047619049E-2,1.9047619047619049E-2,7.6190476190476197E-2,0.82857142857142785,9.5238095238095247E-3,null,null,null,{"$f":"SUM(Foglio1!X2:X1000)","v":6359},0.99999999999999933]
["Lowest priority",1.9047619047619049E-2,null,9.5238095238095247E-3,null,2.8571428571428574E-2,0.94285714285714173,null,null,null,null,0.99999999999999889]
[null,null,null,null,null,null,null,null,null,null,null,0]
[null,null,null,null,null,null,null,null,null,null,null,0]
[null,null,null,null,null,null,null,null,null,null,null,0]
[]
[]
[]
["Weighted by confidence","Basic research","Enabling technologies","Two or three credible candidate platforms","Medium term (quantum simulation, adiabatic computing etc.)","One leading candidate platform","Other"]
["Highest priority",0.39157100172983167,0.23431357131624472,0.20679352099386694,0.11762855794936311,2.6104733448655451E-2,2.3588614562038056E-2,null,null,null,null,{"$f":"SUM(B15:J15)","v":1}]
["Priority 2",0.14829375688001256,0.42223620066048112,0.12266079572259786,0.25176914609215278,4.4032080515804373E-2,1.1008020128951093E-2,null,null,null,null,0.99999999999999956]
["Priority 3",0.16905173769460607,0.18965246107878597,0.29532945431671648,0.30036169208995123,2.9878911778581541E-2,1.5725743041358705E-2,null,null,null,null,1]
["Priority 4",0.2234628086177072,0.13760025161188866,0.33810347538921209,0.22251926403522565,6.5733605912879384E-2,1.2580594433086963E-2,null,null,null,null,0.99999999999999989]
["Priority 5",4.5604654819940242E-2,1.6197515332599464E-2,2.4532159144519578E-2,0.10772133983330713,0.79336373643654667,1.2580594433086963E-2,null,null,null,null,1]
["Lowest priority",2.2016040257902186E-2,null,1.2580594433086963E-2,null,4.0886931907532634E-2,0.92451643340147815,null,null,null,null,1]
[null,null,null,null,null,null,null,null,null,null,null,0]
[null,null,null,null,null,null,null,null,null,null,null,0]
[null,null,null,null,null,null,null,null,null,null,null,0]
[]
[]
["Exact text used in Foglio1","Basic research- e.g. because it is premature to move ahead with technology development and the attempts being made to do so are misguided.","Enabling technologies- which would increase the available options for a full-scale quantum computer.","Two or three credible candidate platforms- with an aim to produce full-scale computers.","Solutions such as quantum simulation and adiabatic computing- which have a good chance of being useful in the medium term.","One chosen leading candidate platform- since only by focusing all available resources is there a reasonable chance of success.","Other (please indicate in the textbox after \\Submit\\\").\""]
["Checksum",{"$f":"SUM(B2:B10)","v":1.0000000000000002},1.0000000000000002,1.0000000000000002,1,0.99999999999999933,0.99999999999999889]
["Checksum",{"$f":"SUM(B15:B23)","v":0.99999999999999989},{"$f":"SUM(C15:C23)","v":1},1,0.99999999999999989,1,0.99999999999999989]
[]
[]
[]
[]
[null,null,"`"]